bitfinex/quotes_SOLUSD_20230112
["timestamp","ask_amount","ask_price","bid_price","bid_amount"]
[1673516844038,115.0462,16.146,16.131,27.48]
[1673516844364,46.43,16.154,16.14,13.02]
[1673516844577,5.2692,16.154,16.141,49.58]
[1673516844793,5.2692,16.153,16.141,20.0]
[1673516845737,5.2692,16.153,16.134,20.0]
[1673516845927,5.2692,16.153,16.135,29.82]
[1673516846137,5.2692,16.153,16.136,20.0]
[1673516846349,17.0,16.152,16.137,29.16]
[1673516846571,5.2692,16.152,16.137,140.2891]
[1673516846779,5.2692,16.152,16.138,20.0]
[1673516846992,5.2692,16.152,16.139,27.02]
[1673516847202,175.09506728,16.159,16.14,33.99]
[1673516847511,5.2692,16.158,16.141,26.79]
[1673516847828,5.2692,16.158,16.142,20.96]
[1673516848034,63.42,16.157,16.142,20.96]
[1673516848245,5.2692,16.156,16.142,20.96]
[1673516848672,5.2692,16.156,16.142,20.0]
[1673516848886,17.0,16.155,16.142,20.0]
[1673516849079,5.2692,16.154,16.142,20.0]
[1673516849612,5.2692,16.154,16.143,0.96]
[1673516853521,5.2692,16.154,16.142,20.0]
[1673516854131,5.2692,16.154,16.14,129.5996]
[1673516854132,5.2692,16.154,16.141,20.0]
[1673516854767,155.9501,16.159,16.142,0.96]
[1673516854971,5.2692,16.158,16.142,1.92]
[1673516855179,5.2692,16.158,16.143,36.53]
[1673516855393,5.2692,16.158,16.144,21.92]
[1673516855608,5.2692,16.158,16.145,36.48]
[1673516855819,5.2692,16.158,16.146,1.92]
[1673516856042,109.5301,16.159,16.146,1.92]
[1673516859079,109.5301,16.159,16.144,20.0]
[1673516859309,5.2692,16.158,16.144,20.0]
[1673516859517,51.6892,16.158,16.142,20.0]
[1673516860342,51.6892,16.158,16.143,1.92]
[1673516864142,5.2692,16.158,16.143,1.92]
[1673516865086,51.6892,16.158,16.143,1.92]
[1673516869074,46.42,16.158,16.143,1.92]
[1673516878034,51.6892,16.158,16.143,1.92]
[1673516880663,51.6892,16.158,16.141,20.0]
[1673516880875,5.2692,16.157,16.141,20.0]
[1673516881084,46.43,16.156,16.141,20.0]
[1673516881288,111.6888,16.155,16.141,20.0]
[1673516882120,111.6888,16.155,16.142,0.96]
[1673516882341,83.43,16.154,16.14,53.24252267]
[1673516882540,5.2692,16.153,16.131,116.4208]
[1673516882753,13.07,16.15,16.131,116.4208]
[1673516882961,46.45,16.149,16.131,116.4208]
[1673516885285,46.45,16.149,16.136,0.96]
[1673516892769,46.45,16.149,16.131,116.4208]
[1673516892953,17.0,16.148,16.131,116.4208]
[1673516893162,46.45,16.147,16.131,116.4208]
[1673516894027,113.0516,16.146,16.131,116.4208]
[1673516894341,46.46,16.145,16.131,116.4208]
[1673516897070,113.0516,16.146,16.131,116.4208]
[1673516897387,46.46,16.145,16.131,116.4208]
[1673516901797,118.3208,16.146,16.131,116.4208]
[1673516902108,22.2692,16.145,16.131,116.4208]
[1673516902317,5.2692,16.144,16.131,116.4208]
[1673516904016,5.2692,16.144,16.132,29.72]
[1673516904208,113.0516,16.146,16.132,29.72]
[1673516905179,86.48899144,16.146,16.132,29.72]
[1673516906017,86.48899144,16.146,16.135,67.87110487]
[1673516907793,5.2692,16.145,16.135,67.87110487]
[1673516914213,5.2692,16.145,16.132,293.32819238]
[1673516914425,5.2692,16.145,16.133,20.0]
[1673516924505,86.48899144,16.146,16.134,0.96]
[1673516924723,13.07,16.15,16.134,0.96]
[1673516925046,13.07,16.15,16.135,0.96]
[1673516925245,13.07,16.15,16.136,0.96]
[1673516925576,46.44,16.153,16.137,2.704]
[1673516925889,5.2692,16.151,16.137,2.704]
[1673516926095,5.2692,16.151,16.137,0.96]
[1673516926288,5.2692,16.151,16.138,7.026]
[1673516926498,5.2692,16.151,16.139,0.96]
[1673516926824,5.2692,16.151,16.138,6.066]
[1673516927037,5.2692,16.151,16.135,300.57365352]
[1673516927247,5.2692,16.151,16.136,0.96]
[1673516927445,5.2692,16.151,16.137,8.928]
[1673516927869,5.2692,16.151,16.138,0.96]
[1673516928094,5.2692,16.151,16.139,10.24]
[1673516928409,5.2692,16.151,16.138,10.24]
[1673516930300,5.2692,16.151,16.139,0.96]
[1673516930497,5.2692,16.151,16.139,1.92]
[1673516933665,5.2692,16.151,16.14,37.06]
[1673516933990,46.42,16.159,16.141,1.92]
[1673516934192,46.42,16.159,16.142,24.05]
[1673516934386,13.2,16.16,16.143,1.92]
[1673516934594,13.2,16.16,16.144,27.49]
[1673516934831,13.2,16.16,16.145,1.92]
[1673516935040,13.2,16.16,16.145,0.96]
[1673516935255,46.42,16.159,16.143,20.0]
[1673516935446,46.42,16.159,16.144,0.96]
[1673516935774,46.42,16.159,16.143,34.94]
[1673516935987,46.42,16.159,16.144,20.0]
[1673516936305,46.42,16.159,16.145,0.96]
[1673516937461,46.42,16.159,16.144,20.96]
[1673516937862,46.42,16.159,16.145,0.96]
[1673516938191,46.42,16.159,16.145,20.96]
[1673516938407,46.42,16.159,16.144,0.96]
[1673516938596,46.42,16.159,16.143,0.96]
[1673516940593,46.42,16.159,16.142,20.0]
[1673516940804,116.958,16.155,16.141,20.0]
[1673516941029,116.958,16.155,16.142,0.96]
[1673516941241,116.958,16.155,16.141,20.0]
[1673516941452,68.6992,16.154,16.141,20.0]
[1673516941657,5.2692,16.153,16.141,20.0]
[1673516954790,5.2692,16.153,16.142,0.96]
[1673516954988,111.6888,16.155,16.142,27.23]
[1673516955199,111.6888,16.155,16.143,20.0]
[1673516955619,111.6888,16.155,16.144,0.96]
[1673516955830,111.6888,16.155,16.143,0.96]
[1673516958905,6.66606645,16.155,16.143,0.96]
[1673516959103,46.42,16.159,16.143,0.96]
[1673516959313,5.2692,16.158,16.143,0.96]
[1673516959623,46.42,16.157,16.143,0.96]
[1673516959835,51.6892,16.157,16.143,0.96]
[1673516960031,5.2692,16.157,16.143,0.96]
[1673516960887,63.43,16.156,16.142,20.0]
[1673516961210,5.2692,16.155,16.141,20.0]
[1673516961405,46.43,16.154,16.141,20.0]
[1673516961612,51.6992,16.154,16.141,20.0]
[1673516961836,5.2692,16.154,16.141,20.0]
[1673516976557,5.2692,16.154,16.141,29.294]
[1673516981628,5.2692,16.154,16.141,20.0]
[1673517000334,17.0,16.153,16.14,12.95]
[1673517000550,12.97,16.15,16.133,396.1]
[1673517000765,22.2692,16.149,16.133,396.1]
[1673517000951,5.2692,16.148,16.133,396.1]
[1673517001281,17.0,16.147,16.133,396.1]
[1673517001488,5.2692,16.146,16.133,396.1]
[1673517002635,17.0,16.145,16.133,396.1]
[1673517002858,5.2692,16.144,16.133,396.1]
[1673517003173,5.2692,16.144,16.131,119.0975]
[1673517007360,17.0,16.143,16.131,119.0975]
[1673517007570,5.2692,16.142,16.131,119.0975]
[1673517009583,5.2692,16.142,16.13,12.95]
[1673517009793,17.88959596,16.141,16.122,116.4255]
[1673517010105,0.88959596,16.139,16.123,293.49193075]
[1673517010323,6.15879596,16.139,16.123,293.49193075]
[1673517012617,22.2692,16.138,16.123,293.49193075]
[1673517012827,6.15879596,16.137,16.123,293.49193075]
[1673517013046,5.2692,16.136,16.123,293.49193075]
[1673517013257,6.15879596,16.136,16.123,293.49193075]
[1673517013476,5.2692,16.136,16.123,293.49193075]
[1673517016195,0.88959596,16.139,16.123,293.49193075]
[1673517019047,17.88959596,16.139,16.123,293.49193075]
[1673517020000,0.88959596,16.139,16.123,293.49193075]
[1673517020822,5.2692,16.138,16.123,293.49193075]
[1673517021136,17.88959596,16.137,16.123,293.49193075]
[1673517021339,5.2692,16.136,16.123,293.49193075]
[1673517030818,17.0,16.135,16.123,293.49193075]
[1673517031037,5.2692,16.134,16.123,293.49193075]
[1673517031254,17.0,16.133,16.123,293.49193075]
[1673517031463,5.2692,16.132,16.123,293.49193075]
[1673517034203,65.44,16.14,16.124,20.0]
[1673517034409,22.2692,16.139,16.124,20.0]
[1673517034634,5.2692,16.138,16.124,20.0]
[1673517034940,17.0,16.137,16.124,20.0]
[1673517035144,5.2692,16.136,16.124,20.0]
[1673517035340,17.0,16.135,16.124,20.0]
[1673517035550,22.2692,16.135,16.124,20.0]
[1673517038090,5.2692,16.134,16.124,20.0]
[1673517038928,17.0,16.133,16.124,20.0]
[1673517039120,22.2692,16.133,16.124,20.0]
[1673517039757,5.2692,16.133,16.124,20.0]
[1673517041343,17.0,16.132,16.124,20.0]
[1673517041654,5.2692,16.133,16.124,20.0]
[1673517041858,17.0,16.132,16.124,20.0]
[1673517042070,22.2692,16.132,16.124,20.0]
[1673517042482,5.2692,16.132,16.124,20.0]
[1673517049858,5.2692,16.132,16.124,25.162]
[1673517050171,5.2692,16.132,16.124,20.0]
[1673517050808,5.2692,16.132,16.125,0.96]
[1673517051000,13.1,16.14,16.126,7.225]
[1673517051212,22.2692,16.139,16.126,7.225]
[1673517051423,5.2692,16.139,16.126,7.225]
[1673517054278,5.2692,16.139,16.125,13.7]
[1673517056050,5.2692,16.139,16.125,12.74]
[1673517056375,17.0,16.138,16.124,20.0]
[1673517056562,5.2692,16.137,16.124,20.0]
[1673517056781,17.0,16.136,16.122,20.0]
[1673517057108,5.2692,16.135,16.122,20.0]
[1673517057317,17.0,16.134,16.122,20.0]
[1673517057524,5.2692,16.133,16.122,20.0]
[1673517057721,17.0,16.132,16.122,20.0]
[1673517057933,22.2692,16.132,16.122,20.0]
[1673517060163,22.2692,16.132,16.121,20.0]
[1673517062361,5.2692,16.131,16.121,20.0]
[1673517073606,5.2692,16.131,16.12,293.54655084]
[1673517073822,29.99,16.13,16.12,293.54655084]
[1673517074008,51.7692,16.129,16.12,293.54655084]
[1673517074223,17.0,16.128,16.12,293.54655084]
[1673517074542,5.2692,16.127,16.12,293.54655084]
[1673517082448,17.0,16.126,16.12,293.54655084]
[1673517082642,22.2692,16.126,16.12,293.54655084]
[1673517082854,22.2692,16.126,16.12,285.92191584]
[1673517086648,5.2692,16.126,16.12,285.92191584]
[1673517086847,17.0,16.125,16.12,285.92191584]
[1673517087057,5.2692,16.124,16.113,20.0]
[1673517087267,17.0,16.123,16.114,20.0]
[1673517087493,22.2692,16.123,16.114,20.0]
[1673517088952,5.2692,16.122,16.114,20.0]
[1673517089157,17.0,16.121,16.114,20.0]
[1673517089380,22.2692,16.121,16.114,20.0]
[1673517090643,22.2692,16.121,16.113,20.0]
[1673517090834,22.2692,16.121,16.114,20.0]
[1673517094357,5.2692,16.121,16.114,20.0]
[1673517102643,13.0,16.13,16.115,20.0]
[1673517103902,17.0,16.129,16.115,20.0]
[1673517105258,46.49,16.133,16.115,20.0]
[1673517105587,118.4082,16.135,16.12,13.1]
[1673517105812,20.0,16.134,16.12,13.1]
[1673517106743,17.0,16.133,16.12,13.1]
[1673517113265,46.5,16.132,16.12,13.1]
[1673517113458,17.0,16.131,16.117,20.0]
[1673517114078,17.0,16.132,16.116,11.65]
[1673517114312,13.1,16.13,16.115,20.0]
[1673517114527,17.0,16.129,16.115,20.0]
[1673517117158,46.51,16.128,16.115,20.0]
[1673517117371,17.0,16.127,16.115,20.0]
[1673517117904,17.0,16.128,16.115,20.0]
[1673517118090,17.0,16.128,16.114,154.8315]
[1673517118298,17.0,16.128,16.114,134.8315]
[1673517120732,17.0,16.128,16.112,10.45]
[1673517120951,13.1,16.12,16.11,82.3038]
[1673517121147,17.0,16.119,16.11,82.3038]
[1673517123888,13.1,16.12,16.11,82.3038]
[1673517126490,17.0,16.119,16.11,82.3038]
[1673517127562,17.0,16.119,16.104,20.0]
[1673517127773,17.0,16.119,16.102,306.24154039]
[1673517127774,40.0,16.118,16.102,286.24154039]
[1673517127984,20.0,16.116,16.101,80.0432]
[1673517128197,66.54,16.115,16.101,80.0432]
[1673517128422,17.0,16.114,16.101,80.0432]
[1673517128835,17.0,16.114,16.102,20.0]
[1673517129365,20.0,16.115,16.102,20.0]
[1673517129586,13.0,16.12,16.102,20.0]
[1673517129587,20.0,16.116,16.102,20.0]
[1673517129771,20.0,16.118,16.102,20.0]
[1673517129982,63.54,16.117,16.102,20.0]
[1673517130191,20.0,16.116,16.102,20.0]
[1673517130421,17.0,16.115,16.102,20.0]
[1673517130632,20.0,16.114,16.102,20.0]
[1673517131678,20.0,16.118,16.102,20.0]
[1673517131679,66.54,16.117,16.102,20.0]
[1673517132082,20.0,16.117,16.102,20.0]
[1673517132291,20.0,16.118,16.102,20.0]
[1673517132515,46.54,16.117,16.102,20.0]
[1673517132710,37.0,16.116,16.102,20.0]
[1673517134502,56.14496728,16.116,16.101,80.0432]
[1673517134831,13.04,16.11,16.101,80.0432]
[1673517135149,13.04,16.11,16.095,119.4157]
[1673517135358,17.0,16.109,16.096,20.0]
[1673517135678,13.04,16.11,16.097,20.0]
[1673517137044,17.0,16.109,16.097,20.0]
[1673517138600,13.04,16.11,16.097,20.0]
[1673517141540,46.55,16.114,16.097,20.0]
[1673517141775,17.0,16.113,16.097,20.0]
[1673517143262,46.55,16.114,16.097,20.0]
[1673517143474,118.5739,16.115,16.1,13.1]
[1673517143786,20.0,16.114,16.097,20.0]
[1673517144202,20.0,16.114,16.098,0.96]
[1673517144397,66.55,16.114,16.097,20.0]
[1673517145468,17.0,16.113,16.098,1.73]
[1673517146606,66.55,16.114,16.099,1.92]
[1673517147032,66.55,16.114,16.1,13.1]
[1673517147241,20.0,16.114,16.101,20.96]
[1673517147458,20.0,16.114,16.101,21.92]
[1673517154720,20.0,16.118,16.101,21.92]
[1673517154931,63.54,16.117,16.101,21.92]
[1673517155135,20.0,16.116,16.101,21.92]
[1673517159558,17.0,16.115,16.101,20.0]
[1673517159771,20.0,16.114,16.101,20.0]
[1673517159973,17.0,16.113,16.101,20.0]
[1673517160299,20.0,16.114,16.1,13.1]
[1673517160613,63.55,16.113,16.098,20.0]
[1673517160825,13.1,16.11,16.096,20.0]
[1673517161137,46.56,16.109,16.095,119.4157]
[1673517161536,13.1,16.11,16.095,119.4157]
[1673517161970,13.1,16.11,16.096,20.0]
[1673517162192,13.1,16.11,16.097,1.92]
[1673517163024,13.1,16.11,16.096,20.0]
[1673517163352,17.0,16.109,16.096,20.0]
[1673517164814,13.1,16.11,16.097,0.96]
[1673517166475,13.1,16.11,16.097,1.92]
[1673517166686,13.1,16.11,16.096,20.0]
[1673517170066,13.1,16.11,16.097,0.96]
[1673517170262,119.5805,16.112,16.097,0.96]
[1673517170683,12.99,16.11,16.096,42.9]
[1673517170906,12.99,16.11,16.096,20.0]
[1673517171312,17.0,16.109,16.096,20.0]
[1673517172910,63.56,16.109,16.095,20.0]
[1673517173120,63.56,16.109,16.096,20.0]
[1673517173315,46.56,16.109,16.096,20.0]
[1673517173531,12.99,16.11,16.096,44.6]
[1673517174487,12.99,16.11,16.097,20.96]
[1673517176359,46.56,16.111,16.097,20.96]
[1673517176681,119.5805,16.112,16.097,20.96]
[1673517177199,46.56,16.111,16.097,20.96]
[1673517178157,46.56,16.111,16.097,20.0]
[1673517178373,17.0,16.11,16.097,20.0]
[1673517181012,17.0,16.11,16.096,20.0]
[1673517181320,46.56,16.109,16.096,20.0]
[1673517181533,17.0,16.11,16.096,20.0]
[1673517183212,29.99,16.11,16.096,20.0]
[1673517184059,46.56,16.109,16.095,20.0]
[1673517184377,17.0,16.108,16.095,20.0]
[1673517184897,17.0,16.108,16.094,20.0]
[1673517188983,46.57,16.107,16.094,20.0]
[1673517189199,17.0,16.106,16.094,20.0]
[1673517190991,46.56,16.109,16.094,20.0]
[1673517192455,17.0,16.108,16.094,40.0]
[1673517192778,17.0,16.108,16.094,20.0]
[1673517193183,46.57,16.107,16.094,20.0]
[1673517193393,17.0,16.106,16.094,20.0]
[1673517195203,46.56,16.109,16.094,20.0]
[1673517195390,17.0,16.108,16.094,40.0]
[1673517195601,46.57,16.107,16.094,40.0]
[1673517196150,46.57,16.107,16.094,20.0]
[1673517196358,17.0,16.106,16.094,20.0]
[1673517196966,63.57,16.107,16.094,20.0]
[1673517197916,17.0,16.107,16.094,20.0]
[1673517198138,17.0,16.108,16.094,20.0]
[1673517198353,46.57,16.107,16.094,20.0]
[1673517198544,17.0,16.108,16.094,20.0]
[1673517200561,46.57,16.107,16.094,20.0]
[1673517202976,17.0,16.108,16.094,40.0]
[1673517204112,17.0,16.108,16.094,20.0]
[1673517204872,46.57,16.107,16.094,20.0]
[1673517205070,17.0,16.108,16.094,20.0]
[1673517206105,17.0,16.108,16.093,286.40162079]
[1673517206106,20.0,16.106,16.093,286.40162079]
[1673517206321,83.57,16.105,16.093,286.40162079]
[1673517207056,66.57,16.105,16.093,286.40162079]
[1673517207263,20.0,16.105,16.093,286.40162079]
[1673517207488,46.56,16.109,16.093,286.40162079]
[1673517207702,177.1269,16.11,16.094,10.52]
[1673517207703,111.7569,16.11,16.094,10.52]
[1673517207897,111.7569,16.11,16.095,0.96]
[1673517208103,111.7569,16.11,16.096,9.564]
[1673517208336,111.7569,16.11,16.097,0.96]
[1673517208654,111.7569,16.11,16.098,13.83]
[1673517208841,111.7569,16.11,16.099,20.0]
[1673517209051,46.54,16.118,16.1,13.06]
[1673517209374,46.54,16.118,16.102,20.0]
[1673517209596,165.7558,16.118,16.102,20.0]
[1673517209994,20.0,16.117,16.102,20.0]
[1673517212032,119.2158,16.118,16.103,24.17]
[1673517212211,119.2158,16.118,16.104,40.0]
[1673517212422,119.2158,16.118,16.106,20.0]
[1673517212959,119.2158,16.118,16.11,13.1]
[1673517216415,119.2158,16.118,16.107,29.35]
[1673517216620,119.2158,16.118,16.106,20.0]
[1673517220547,116.7043,16.119,16.106,20.0]
[1673517220733,116.7043,16.119,16.107,0.96]
[1673517221588,116.7043,16.119,16.106,20.0]
[1673517224337,116.7043,16.119,16.107,0.96]
[1673517224558,46.52,16.122,16.107,0.96]
[1673517230307,46.52,16.122,16.107,51.23707668]
[1673517230518,46.52,16.122,16.108,20.0]
[1673517231164,46.52,16.122,16.11,13.1]
[1673517231391,134.19536728,16.128,16.11,13.1]
[1673517231392,46.51,16.127,16.111,0.96]
[1673517231691,20.0,16.126,16.111,0.96]
[1673517231901,46.52,16.125,16.111,20.96]
[1673517232118,20.0,16.124,16.111,20.96]
[1673517232340,46.52,16.123,16.111,20.0]
[1673517233470,20.0,16.124,16.112,0.96]
[1673517233678,20.0,16.126,16.112,0.96]
[1673517233896,46.52,16.125,16.112,0.96]
[1673517234095,20.0,16.124,16.112,0.96]
[1673517234633,20.0,16.126,16.113,20.0]
[1673517234958,46.52,16.125,16.113,20.0]
[1673517235142,20.0,16.124,16.113,20.0]
[1673517236011,46.52,16.123,16.114,12.50372693]
[1673517236193,46.52,16.125,16.114,12.50372693]
[1673517236403,20.0,16.124,16.114,12.50372693]
[1673517237033,20.0,16.126,16.113,20.0]
[1673517237253,46.52,16.125,16.114,12.50372693]
[1673517237459,20.0,16.124,16.113,20.0]
[1673517237669,46.52,16.123,16.114,12.50372693]
[1673517238419,46.52,16.123,16.113,20.0]
[1673517240216,46.52,16.123,16.114,12.50372693]
[1673517240400,46.52,16.123,16.113,20.0]
[1673517243663,46.52,16.123,16.114,32.50372693]
[1673517243983,115.0504,16.128,16.116,20.0]
[1673517244174,115.0504,16.128,16.12,13.1]
[1673517245125,46.49,16.135,16.12,13.1]
[1673517245339,20.0,16.134,16.12,13.1]
[1673517245548,46.49,16.133,16.12,13.1]
[1673517246711,46.49,16.133,16.118,1.76666412]
[1673517246712,17.0,16.132,16.118,1.76666412]
[1673517246945,46.5,16.131,16.118,1.76666412]
[1673517247781,17.0,16.13,16.118,1.76666412]
[1673517247991,46.5,16.129,16.118,1.76666412]
[1673517251897,46.49,16.133,16.118,1.76666412]
[1673517253147,17.0,16.132,16.118,1.76666412]
[1673517253361,46.5,16.131,16.118,1.76666412]
[1673517255142,17.0,16.13,16.118,1.76666412]
[1673517255348,46.5,16.129,16.118,1.76666412]
[1673517257882,46.49,16.133,16.119,13.46372693]
[1673517258113,46.49,16.133,16.12,1.76666412]
[1673517261463,17.0,16.132,16.118,1.76666412]
[1673517261671,46.5,16.131,16.118,1.76666412]
[1673517261996,17.0,16.13,16.118,1.76666412]
[1673517262198,46.5,16.129,16.118,1.76666412]
[1673517263031,46.49,16.133,16.118,1.76666412]
[1673517263241,17.0,16.132,16.118,1.76666412]
[1673517263474,46.5,16.131,16.118,1.76666412]
[1673517263663,17.0,16.13,16.118,1.76666412]
[1673517263874,46.5,16.129,16.118,1.76666412]
[1673517264510,46.49,16.133,16.118,1.76666412]
[1673517264711,17.0,16.132,16.118,1.76666412]
[1673517264921,46.5,16.131,16.118,1.76666412]
[1673517265130,17.0,16.13,16.118,1.76666412]
[1673517265341,46.5,16.129,16.118,1.76666412]
[1673517265562,46.49,16.133,16.118,1.76666412]
[1673517265777,17.0,16.132,16.118,1.76666412]
[1673517265985,46.5,16.131,16.118,1.76666412]
[1673517267348,17.0,16.13,16.117,20.0]
[1673517267670,46.5,16.129,16.117,20.0]
[1673517267857,46.5,16.129,16.116,32.50372693]
[1673517268080,17.0,16.128,16.114,20.0]
[1673517268298,46.51,16.127,16.11,131.2244]
[1673517268517,37.0,16.126,16.11,111.2244]
[1673517268711,20.0,16.124,16.11,111.2244]
[1673517269046,63.52,16.123,16.11,111.2244]
[1673517269786,46.52,16.123,16.111,20.0]
[1673517269990,46.52,16.125,16.111,32.50372693]
[1673517270207,20.0,16.124,16.111,32.50372693]
[1673517270419,46.52,16.123,16.111,32.50372693]
[1673517270628,46.52,16.123,16.111,20.0]
[1673517270815,17.0,16.122,16.111,20.0]
[1673517271032,46.53,16.121,16.111,20.0]
[1673517271565,46.52,16.123,16.111,20.0]
[1673517274306,46.52,16.123,16.11,111.2244]
[1673517275363,17.0,16.122,16.11,111.2244]
[1673517275575,46.53,16.121,16.11,111.2244]
[1673517275883,46.52,16.123,16.11,111.2244]
[1673517276312,17.0,16.122,16.11,111.2244]
[1673517277046,46.52,16.123,16.11,111.2244]
[1673517281339,17.0,16.122,16.11,111.2244]
[1673517282507,46.52,16.123,16.11,111.2244]
[1673517282724,20.0,16.124,16.111,20.0]
[1673517282921,63.52,16.123,16.111,20.0]
[1673517286617,46.52,16.125,16.111,20.0]
[1673517286845,20.0,16.124,16.111,20.0]
[1673517287138,46.52,16.123,16.111,20.0]
[1673517287340,20.0,16.124,16.111,20.0]
[1673517287550,20.0,16.126,16.111,20.0]
[1673517287761,46.52,16.125,16.11,111.2244]
[1673517287967,20.0,16.124,16.11,111.2244]
[1673517288183,63.52,16.123,16.11,111.2244]
[1673517291337,13.1,16.12,16.106,35.83]
[1673517291543,46.53,16.119,16.103,142.5418]
[1673517291749,17.0,16.118,16.104,20.0]
[1673517291972,46.54,16.117,16.104,20.0]
[1673517292181,46.54,16.117,16.104,40.0]
[1673517294815,17.0,16.118,16.104,40.0]
[1673517295873,66.54,16.117,16.097,38.94]
[1673517296067,0.09441869,16.098,16.096,43.63944774]
[1673517296393,13.1,16.11,16.097,37.92]
[1673517296584,17.0,16.109,16.097,20.0]
[1673517298806,17.0,16.109,16.096,20.0]
[1673517302080,63.56,16.109,16.096,20.0]
[1673517302267,17.0,16.109,16.096,20.0]
[1673517302595,123.4005,16.11,16.096,20.0]
[1673517302910,123.4005,16.11,16.097,0.96]
[1673517307130,123.4005,16.11,16.096,20.0]
[1673517307343,123.4005,16.11,16.095,20.0]
[1673517307344,63.56,16.109,16.095,20.0]
[1673517307662,63.56,16.109,16.096,20.0]
[1673517309947,46.56,16.109,16.096,20.0]
[1673517313543,46.56,16.109,16.095,20.0]
[1673517314067,46.56,16.109,16.096,0.96]
[1673517314277,46.54,16.116,16.097,20.0]
[1673517314464,20.0,16.115,16.098,47.55]
[1673517314676,20.0,16.115,16.099,20.0]
[1673517314896,20.0,16.115,16.1,0.96]
[1673517315430,46.55,16.114,16.1,0.96]
[1673517315747,46.55,16.114,16.1,14.06]
[1673517316912,46.55,16.114,16.101,0.96]
[1673517317103,46.55,16.114,16.102,0.96]
[1673517318370,20.0,16.115,16.102,0.96]
[1673517318371,20.0,16.115,16.103,0.96]
[1673517318567,46.55,16.114,16.104,0.96]
[1673517319530,20.0,16.115,16.104,0.96]
[1673517321318,46.55,16.114,16.104,0.96]
[1673517325727,46.55,16.114,16.101,20.0]
[1673517325946,46.55,16.114,16.1,33.1]
[1673517328774,46.55,16.114,16.1,13.1]
[1673517328983,17.0,16.113,16.1,13.1]
[1673517329180,46.55,16.112,16.1,13.1]
[1673517332857,46.55,16.112,16.099,43.63944774]
[1673517334248,46.55,16.112,16.099,56.19329913]
[1673517334434,17.0,16.113,16.099,43.63944774]
[1673517335404,46.55,16.112,16.099,43.63944774]
[1673517341086,17.0,16.113,16.099,43.63944774]
[1673517341491,17.0,16.113,16.096,12.55385139]
[1673517341729,13.1,16.11,16.093,452.93982079]